fUST/lending_fUST_20260518
["ID","MTS","AMOUNT","RATE_DAILY","PERIOD"]
[422545685,1779049844000,-500.0,0.00011506,2]
[422545690,1779049844000,-1473.71,0.00011506,2]
[422545682,1779049844000,-500.0,0.00011506,2]
[422545683,1779049844000,-500.0,0.00011506,2]
[422545679,1779049844000,-517.05148891,0.00011506,2]
[422545686,1779049844000,-852.2,0.00011506,2]
[422545689,1779049844000,-500.0,0.00011506,2]
[422545684,1779049844000,-500.0,0.00011506,2]
[422545680,1779049844000,-500.0,0.00011506,2]
[422545694,1779049844000,-715.94,0.00011506,2]
[422545692,1779049844000,-1154.74,0.00011506,2]
[422545693,1779049844000,-500.0,0.00011506,2]
[422545703,1779049844000,-1234.42,0.00011506,2]
[422545681,1779049844000,-784.32,0.00011506,2]
[422545704,1779049844000,-500.0,0.00011506,2]
[422545695,1779049844000,-500.0,0.00011506,2]
[422545698,1779049844000,-500.0,0.00011506,2]
[422545699,1779049844000,-500.0,0.00011506,2]
[422545697,1779049844000,-1710.53,0.00011506,2]
[422545701,1779049844000,-500.0,0.00011506,2]
[422545700,1779049844000,-500.0,0.00011506,2]
[422545702,1779049844000,-500.0,0.00011506,2]
[422545709,1779049844000,-713.82,0.00011506,2]
[422545644,1779049844000,-500.0,0.00011506,2]
[422545710,1779049844000,-667.16,0.00011506,2]
[422545706,1779049844000,-2516.73,0.00011506,2]
[422545707,1779049844000,-530.01,0.00011506,2]
[422545711,1779049844000,-601.93,0.00011506,2]
[422545696,1779049844000,-500.0,0.00011506,2]
[422545691,1779049844000,-500.0,0.00011506,2]
[422545705,1779049844000,-500.0,0.00011506,2]
[422545688,1779049844000,-500.0,0.00011506,2]
[422545687,1779049844000,-500.0,0.00011506,2]
[422545642,1779049844000,-500.0,0.00011506,2]
[422545648,1779049844000,-580.50478632,0.00011506,2]
[422545650,1779049844000,-793.03,0.00011506,2]
[422545665,1779049844000,-500.0,0.00011506,2]
[422545654,1779049844000,-642.9,0.00011506,2]
[422545656,1779049844000,-712.21,0.00011506,2]
[422545655,1779049844000,-500.0,0.00011506,2]
[422545658,1779049844000,-500.0,0.00011506,2]
[422545659,1779049844000,-500.0,0.00011506,2]
[422545660,1779049844000,-500.0,0.00011506,2]
[422545664,1779049844000,-500.0,0.00011506,2]
[422545662,1779049844000,-500.0,0.00011506,2]
[422545661,1779049844000,-665.76,0.00011506,2]
[422545657,1779049844000,-500.0,0.00011506,2]
[422545674,1779049844000,-500.0,0.00011506,2]
[422545663,1779049844000,-500.0,0.00011506,2]
[422545673,1779049844000,-500.0,0.00011506,2]
[422545675,1779049844000,-2254.48,0.00011506,2]
[422545678,1779049844000,-500.0,0.00011506,2]
[422545676,1779049844000,-3117.55,0.00011506,2]
[422545671,1779049844000,-500.0,0.00011506,2]
[422545677,1779049844000,-500.0,0.00011506,2]
[422545649,1779049844000,-500.0,0.00011506,2]
[422545669,1779049844000,-500.0,0.00011506,2]
[422545670,1779049844000,-500.0,0.00011506,2]
[422545668,1779049844000,-500.0,0.00011506,2]
[422545667,1779049844000,-584.24,0.00011506,2]
[422545666,1779049844000,-500.0,0.00011506,2]
[422545672,1779049844000,-1949.5,0.00011506,2]
[422545757,1779049845000,-500.0,0.00011506,2]
[422545754,1779049845000,-2312.01,0.00011506,2]
[422545753,1779049845000,-1956.35,0.00011506,2]
[422545761,1779049845000,-698.22,0.00011506,2]
[422545758,1779049845000,-500.0,0.00011506,2]
[422545755,1779049845000,-500.0,0.00011506,2]
[422545752,1779049845000,-729.08,0.00011506,2]
[422545760,1779049845000,-1045.46,0.00011506,2]
[422545759,1779049845000,-500.0,0.00011506,2]
[422545756,1779049845000,-662.04,0.00011506,2]
[422545751,1779049845000,-759.49,0.00011506,2]
[422545749,1779049845000,-980.62,0.00011506,2]
[422545750,1779049845000,-1285.93,0.00011506,2]
[422545743,1779049845000,-677.22,0.00011506,2]
[422545789,1779049845000,-500.0,0.00011506,2]
[422545774,1779049845000,-683.62,0.00011506,2]
[422545775,1779049845000,-2672.76,0.00011506,2]
[422545773,1779049845000,-500.0,0.00011506,2]
[422545762,1779049845000,-646.67,0.00011506,2]
[422545771,1779049845000,-2135.74,0.00011506,2]
[422545769,1779049845000,-545.97,0.00011506,2]
[422545764,1779049845000,-500.0,0.00011506,2]
[422545765,1779049845000,-647.11,0.00011506,2]
[422545770,1779049845000,-4455.56,0.00011506,2]
[422545766,1779049845000,-616.78,0.00011506,2]
[422545767,1779049845000,-635.23,0.00011506,2]
[422545768,1779049845000,-500.0,0.00011506,2]
[422545772,1779049845000,-601.42400718,0.00011506,2]
[422545742,1779049845000,-691.03,0.00011506,2]
[422545763,1779049845000,-1417.87,0.00011506,2]
[422545739,1779049845000,-500.0,0.00011506,2]
[422545717,1779049845000,-500.0,0.00011506,2]
[422545740,1779049845000,-500.0,0.00011506,2]
[422545716,1779049845000,-703.88,0.00011506,2]
[422545781,1779049845000,-500.0,0.00011506,2]
[422545714,1779049845000,-687.15,0.00011506,2]
[422545718,1779049845000,-939.76,0.00011506,2]
[422545713,1779049845000,-500.0,0.00011506,2]
[422545715,1779049845000,-500.0,0.00011506,2]
[422545712,1779049845000,-861.77,0.00011506,2]
[422545719,1779049845000,-588.87,0.00011506,2]
[422545721,1779049845000,-563.42020285,0.00011506,2]
[422545723,1779049845000,-500.0,0.00011506,2]
[422545727,1779049845000,-500.0,0.00011506,2]
[422545730,1779049845000,-771.63,0.00011506,2]
[422545729,1779049845000,-500.0,0.00011506,2]
[422545725,1779049845000,-500.0,0.00011506,2]
[422545726,1779049845000,-4739.22,0.00011506,2]
[422545728,1779049845000,-870.12,0.00011506,2]
[422545722,1779049845000,-500.0,0.00011506,2]
[422545724,1779049845000,-500.0,0.00011506,2]
[422545731,1779049845000,-861.67,0.00011506,2]
[422545732,1779049845000,-665.36,0.00011506,2]
[422545745,1779049845000,-1096.81,0.00011506,2]
[422545746,1779049845000,-766.9,0.00011506,2]
[422545737,1779049845000,-500.0,0.00011506,2]
[422545735,1779049845000,-1230.27,0.00011506,2]
[422545734,1779049845000,-500.0,0.00011506,2]
[422545738,1779049845000,-500.0,0.00011506,2]
[422545747,1779049845000,-500.0,0.00011506,2]
[422545748,1779049845000,-1831.23,0.00011506,2]
[422545736,1779049845000,-500.0,0.00011506,2]
[422545733,1779049845000,-500.0,0.00011506,2]
[422545783,1779049845000,-602.98,0.00011506,2]
[422545720,1779049845000,-823.43604385,0.00011506,2]
[422545788,1779049845000,-500.0,0.00011506,2]
[422545823,1779049845000,-500.0,0.00011506,2]
[422545818,1779049845000,-691.06,0.00011506,2]
[422545820,1779049845000,-1419.78,0.00011506,2]
[422545819,1779049845000,-2231.63,0.00011506,2]
[422545825,1779049845000,-4859.03,0.00011506,2]
[422545822,1779049845000,-500.0,0.00011506,2]
[422545824,1779049845000,-607.11,0.00011506,2]
[422545817,1779049845000,-518.8,0.00011506,2]
[422545821,1779049845000,-500.0,0.00011506,2]
[422545839,1779049845000,-500.0,0.00011506,2]
[422545840,1779049845000,-872.39,0.00011506,2]
[422545829,1779049845000,-2348.07,0.00011506,2]
[422545828,1779049845000,-1860.64,0.00011506,2]
[422545830,1779049845000,-500.0,0.00011506,2]
[422545832,1779049845000,-999.59,0.00011506,2]
[422545841,1779049845000,-665.99,0.00011506,2]
[422545831,1779049845000,-3843.7,0.00011506,2]
[422545833,1779049845000,-10926.76,0.00011506,2]
[422545834,1779049845000,-858.38,0.00011506,2]
[422545838,1779049845000,-500.0,0.00011506,2]
[422545837,1779049845000,-500.0,0.00011506,2]
[422545835,1779049845000,-241.94373172,0.00011506,2]
[422545836,1779049845000,-2280.13,0.00011506,2]
[422545843,1779049845000,-513.77,0.00011506,2]
[422545845,1779049845000,-500.0,0.00011506,2]
[422545844,1779049845000,-500.0,0.00011506,2]
[422545842,1779049845000,-500.0,0.00011506,2]
[422545846,1779049845000,-500.0,0.00011506,2]
[422545785,1779049845000,-4585.39,0.00011506,2]
[422545827,1779049845000,-500.0,0.00011506,2]
[422545826,1779049845000,-500.0,0.00011506,2]
[422545815,1779049845000,-500.0,0.00011506,2]
[422545809,1779049845000,-500.0,0.00011506,2]
[422545776,1779049845000,-500.0,0.00011506,2]
[422545782,1779049845000,-500.0,0.00011506,2]
[422545786,1779049845000,-500.0,0.00011506,2]
[422545779,1779049845000,-601.38,0.00011506,2]
[422545816,1779049845000,-500.0,0.00011506,2]
[422545787,1779049845000,-500.0,0.00011506,2]
[422545778,1779049845000,-697.76,0.00011506,2]
[422545777,1779049845000,-500.0,0.00011506,2]
[422545784,1779049845000,-561.91,0.00011506,2]
[422545795,1779049845000,-561.82,0.00011506,2]
[422545791,1779049845000,-500.0,0.00011506,2]
[422545794,1779049845000,-500.0,0.00011506,2]
[422545790,1779049845000,-500.0,0.00011506,2]
[422545792,1779049845000,-919.52,0.00011506,2]
[422545793,1779049845000,-642.26,0.00011506,2]
[422545780,1779049845000,-559.12,0.00011506,2]
[422545797,1779049845000,-500.0,0.00011506,2]
[422545796,1779049845000,-685.79,0.00011506,2]
[422545804,1779049845000,-500.0,0.00011506,2]
[422545805,1779049845000,-500.0,0.00011506,2]
[422545812,1779049845000,-500.0,0.00011506,2]
[422545803,1779049845000,-1396.94,0.00011506,2]
[422545813,1779049845000,-500.0,0.00011506,2]
[422545807,1779049845000,-782.22,0.00011506,2]
[422545808,1779049845000,-310.37787337,0.00011506,2]
[422545801,1779049845000,-1489.65,0.00011506,2]
[422545806,1779049845000,-500.0,0.00011506,2]
[422545799,1779049845000,-500.0,0.00011506,2]
[422545814,1779049845000,-500.0,0.00011506,2]
[422545810,1779049845000,-500.0,0.00011506,2]
[422545811,1779049845000,-1251.05,0.00011506,2]
[422545870,1779049846000,-748.41,0.00011506,2]
[422545861,1779049846000,-500.0,0.00011506,2]
[422545866,1779049846000,-8580.15,0.00011506,2]
[422545856,1779049846000,-3660.05,0.00011506,2]
[422545864,1779049846000,-500.0,0.00011506,2]
[422545859,1779049846000,-1459.55,0.00011506,2]
[422545863,1779049846000,-3821.36,0.00011506,2]
[422545860,1779049846000,-620.59,0.00011506,2]
[422545858,1779049846000,-824.11,0.00011506,2]
[422545865,1779049846000,-3475.25,0.00011506,2]
[422545847,1779049846000,-500.0,0.00011506,2]
[422545867,1779049846000,-12474.52,0.00011506,2]
[422545868,1779049846000,-1098.89,0.00011506,2]
[422545857,1779049846000,-4432.71,0.00011506,2]
[422545852,1779049846000,-500.0,0.00011506,2]
[422545848,1779049846000,-1211.96,0.00011506,2]
[422545849,1779049846000,-710.58,0.00011506,2]
[422545854,1779049846000,-500.0,0.00011506,2]
[422545855,1779049846000,-4267.59,0.00011506,2]
[422545853,1779049846000,-3734.06,0.00011506,2]
[422545869,1779049846000,-638.83,0.00011506,2]
[422545862,1779049846000,-583.81,0.00011506,2]
[422545881,1779049846000,-500.0,0.00011506,2]
[422545850,1779049846000,-681.84,0.00011506,2]
[422545876,1779049846000,-500.0,0.00011506,2]
[422545897,1779049846000,-671.77936835,0.00010658,2]
[422545896,1779049846000,-2302.42,0.00010658,2]
[422545894,1779049846000,-8094.77678691,0.00010658,2]
[422545889,1779049846000,-500.0,0.00011506,2]
[422545873,1779049846000,-741.12,0.00011506,2]
[422545888,1779049846000,-500.0,0.00011506,2]
[422545891,1779049846000,-500.0,0.00011506,2]
[422545892,1779049846000,-148.61850038,0.00011506,2]
[422545890,1779049846000,-1437.81,0.00011506,2]
[422545887,1779049846000,-905.84597908,0.00011506,2]
[422545885,1779049846000,-2733.38402092,0.00011506,2]
[422545893,1779049846000,-2581.48554106,0.00010658,2]
[422545882,1779049846000,-500.0,0.00011506,2]
[422545884,1779049846000,-871.03,0.00011506,2]
[422545878,1779049846000,-500.0,0.00011506,2]
[422545875,1779049846000,-8004.04,0.00011506,2]
[422545871,1779049846000,-7430.89,0.00011506,2]
[422545872,1779049846000,-2720.69,0.00011506,2]
[422545895,1779049846000,-6085.88211101,0.00010658,2]
[422545879,1779049846000,-500.0,0.00011506,2]
[422545880,1779049846000,-500.0,0.00011506,2]
[422545877,1779049846000,-3187.79,0.00011506,2]
[422545883,1779049846000,-500.0,0.00011506,2]
[422545874,1779049846000,-3049.13,0.00011506,2]
[422545898,1779049847000,-6423.94677741,0.00010658,2]
[422545899,1779049847000,-66489.39891174,0.00010658,2]
[422545901,1779049847000,-632.9392037,0.00010658,2]
[422545900,1779049847000,-446.0,0.00010658,2]
[422545902,1779049847000,-485.7107963,0.00010658,2]
[422545903,1779049847000,-684.83955268,0.00010658,2]
[422545906,1779049847000,-176927.47375371,0.00010658,2]
[422545909,1779049847000,-2966.37331664,0.00010658,2]
[422545905,1779049847000,-5173.46939032,0.00010658,2]
[422545907,1779049847000,-1257.42635663,0.00010658,2]
[422545912,1779049847000,-494.293216,0.00010658,2]
[422545910,1779049847000,-756.85469116,0.00010658,2]
[422545911,1779049847000,-1360.29392899,0.00010658,2]
[422545913,1779049847000,-351.92062858,0.00010658,2]
[422545914,1779049847000,-985.10901097,0.00010658,2]
[422545904,1779049847000,-1911.76309404,0.00010658,2]
[422545908,1779049847000,-5142.00043291,0.00010658,2]
[422545916,1779049890000,200.0,0.00012441,120]
[422545917,1779050010000,200.0,0.00014074,120]
[422545918,1779050130000,200.0,0.00015874,120]
[422545919,1779050190000,200.0,0.00016627,120]
[422545924,1779050250000,200.0,0.00016942,120]
[422545925,1779050370000,200.0,0.00016982,120]
[422545946,1779051031000,-1286.90383156,9.08e-05,2]
[422545952,1779051031000,-5000.0,9.172e-05,2]
[422545950,1779051031000,-1200.0,9.171e-05,2]
[422545948,1779051031000,-3713.09616844,9.08e-05,2]
[422545957,1779051031000,-385.70249783,9.312e-05,2]
[422545953,1779051031000,-300.0,9.311e-05,2]
[422545955,1779051031000,-300.0,9.311e-05,2]
[422545966,1779051031000,-598.70512035,0.00010144,2]
[422545959,1779051031000,-2067.74407805,0.00010144,2]
[422546013,1779051038000,-503.8814169,0.00010042,2]
[422546012,1779051038000,-2849.8060003,0.00010042,2]
[422546016,1779051041000,-1646.3125828,0.00010042,2]
[422546017,1779051041000,-716.38965826,0.00010144,2]
[422546019,1779051041000,-500.0,0.00010144,2]
[422546018,1779051041000,-3558.59443436,0.00010144,2]
[422546021,1779051041000,-500.0,0.00010144,2]
[422546022,1779051041000,-372.27476326,0.00010144,2]
[422546020,1779051041000,-249.2267042,0.00010144,2]
[422546043,1779051047000,-6949.07866982,0.00010044,2]
[422546050,1779051693000,-165.267406,9.268e-05,2]
[422546085,1779052232000,-566.28921522,8.725e-05,2]
[422546088,1779052232000,-3183.44239117,8.725e-05,2]
[422546078,1779052232000,-262.32078478,8.725e-05,2]
[422546094,1779052232000,-987.94760883,8.725e-05,2]
[422546096,1779052232000,-393.34961789,8.769e-05,2]
[422546098,1779052232000,-171.02318663,8.812e-05,2]
[422546124,1779052238000,-1707.69168718,8.813e-05,2]
[422546128,1779052238000,-174.45869294,9.843e-05,2]
[422546125,1779052238000,-2791.99711192,8.813e-05,2]
[422546127,1779052238000,-157.128,9.745e-05,2]
[422546129,1779052238000,-500.0,9.843e-05,2]
[422546126,1779052238000,-300.0,9.172e-05,2]
[422546123,1779052238000,-1028.97681337,8.812e-05,2]
[422546130,1779052238000,-500.0,9.843e-05,2]
[422546131,1779052238000,-500.0,9.843e-05,2]
[422546132,1779052238000,-500.0,9.843e-05,2]
[422546143,1779052238000,-560.78235578,9.844e-05,2]
[422546135,1779052238000,-500.0,9.843e-05,2]
[422546134,1779052238000,-500.0,9.843e-05,2]
[422546133,1779052238000,-500.0,9.843e-05,2]
[422546141,1779052238000,-500.0,9.843e-05,2]
[422546137,1779052238000,-500.0,9.843e-05,2]
[422546140,1779052238000,-500.0,9.843e-05,2]
[422546136,1779052238000,-500.0,9.843e-05,2]
[422546138,1779052238000,-500.0,9.843e-05,2]
[422546139,1779052238000,-629.87129019,9.843e-05,2]
[422546142,1779052238000,-8489.78170741,9.844e-05,2]
[422546150,1779052240000,-1825.08070627,9.844e-05,2]
[422546149,1779052240000,-20499.8769916,9.844e-05,2]
[422546160,1779052243000,-878.91953977,9.844e-05,2]
[422546158,1779052243000,-2073.90864123,9.745e-05,2]
[422546159,1779052243000,-223.28756505,9.844e-05,2]
[422546166,1779052246000,-7691.83323331,9.844e-05,2]
[422546167,1779052246000,-66724.96852797,9.844e-05,2]
[422546168,1779052303000,30129.71,0.000178,120]
[422546211,1779053432000,-2984.69110984,8.058e-05,2]
[422546210,1779053432000,-274.09447751,7.977e-05,2]
[422546237,1779053438000,-400.17404854,8.346e-05,2]
[422546236,1779053438000,-272.78956886,8.058e-05,2]
[422546238,1779053438000,-165.267407,8.645e-05,2]
[422546240,1779053438000,-200.0,8.958e-05,7]
[422546242,1779053438000,-313.18619957,9.123e-05,2]
[422546241,1779053438000,-287.0,9.122e-05,2]
[422546243,1779053438000,-7445.26431643,9.123e-05,2]
[422546255,1779053438000,-500.0,9.641e-05,2]
[422546245,1779053438000,-151.30631365,9.6e-05,2]
[422546244,1779053438000,-153.43469367,9.6e-05,2]
[422546246,1779053438000,-154.04924877,9.6e-05,2]
[422546247,1779053438000,-26153.0,9.64e-05,2]
[422546239,1779053438000,-200.0,8.958e-05,2]
[422546254,1779053438000,-500.0,9.641e-05,2]
[422546252,1779053438000,-500.0,9.641e-05,2]
[422546248,1779053438000,-500.0,9.641e-05,2]
[422546249,1779053438000,-500.0,9.641e-05,2]
[422546251,1779053438000,-500.0,9.641e-05,2]
[422546253,1779053438000,-500.0,9.641e-05,2]
[422546257,1779053438000,-500.0,9.641e-05,2]
[422546256,1779053438000,-500.0,9.641e-05,2]
[422546259,1779053438000,-294.66,9.641e-05,2]
[422546262,1779053438000,-29645.73086605,9.642e-05,2]
[422546260,1779053438000,-22292.85588559,9.642e-05,2]
[422546258,1779053438000,-610.72162439,9.641e-05,2]
[422546261,1779053438000,-968.13929442,9.642e-05,2]
[422546250,1779053438000,-519.265784,9.641e-05,2]
[422546279,1779053446000,-9324.39108208,9.642e-05,2]
[422546280,1779053447000,-27605.26247651,9.642e-05,2]
[422546323,1779054633000,-327.0,8.376e-05,2]
[422546339,1779054638000,-1080.95203498,8.461e-05,2]
[422546338,1779054638000,-1919.02287092,8.376e-05,2]
[422546352,1779054638000,-3064.4651141,8.461e-05,2]
[422546360,1779054638000,-313.1861995,9.333e-05,2]
[422546359,1779054638000,-406.92996468,8.589e-05,2]
[422546362,1779054638000,-889.35269368,9.372e-05,2]
[422546354,1779054638000,-854.58285092,8.461e-05,2]
[422546358,1779054638000,-200.0,8.558e-05,7]
[422546361,1779054638000,-300.0,9.371e-05,2]
[422546364,1779054638000,-151.0,9.48e-05,2]
[422546363,1779054638000,-3553.85336395,9.372e-05,2]
[422546366,1779054638000,-2627.59315865,9.646e-05,2]
[422546356,1779054638000,-200.0,8.558e-05,2]
[422546367,1779054638000,-642.7604378,9.669e-05,2]
[422546365,1779054638000,-158.50213215,9.646e-05,7]
[422546377,1779054638000,-500.0,0.00010454,7]
[422546378,1779054638000,-500.0,0.00010454,7]
[422546375,1779054638000,-160.0,0.00010427,2]
[422546376,1779054638000,-161.67668242,0.00010427,2]
[422546374,1779054638000,-287.0,0.00010308,2]
[422546379,1779054638000,-500.0,0.00010454,7]
[422546370,1779054638000,-175.4203974,9.669e-05,2]
[422546369,1779054638000,-165.0433326,9.669e-05,2]
[422546368,1779054638000,-157.2160084,9.669e-05,2]
[422546372,1779054638000,-317.0042643,0.00010295,7]
[422546373,1779054638000,-151.0,0.00010302,2]
[422546371,1779054638000,-2204.0813756,9.739e-05,2]
[422546391,1779054639000,-500.0,0.00010454,7]
[422546402,1779054639000,-151.5,0.00010583,2]
[422546401,1779054639000,-500.0,0.00010583,2]
[422546398,1779054639000,-233.33,0.00010577,2]
[422546400,1779054639000,-500.0,0.00010583,2]
[422546394,1779054639000,-200.32,0.00010548,2]
[422546389,1779054639000,-500.0,0.00010454,7]
[422546392,1779054639000,-500.0,0.00010454,7]
[422546390,1779054639000,-500.0,0.00010454,7]
[422546393,1779054639000,-198.0,0.00010541,2]
[422546395,1779054639000,-213.12,0.00010554,2]
[422546397,1779054639000,-219.0,0.0001057,2]
[422546387,1779054639000,-500.0,0.00010454,7]
[422546382,1779054639000,-500.0,0.00010454,7]
[422546386,1779054639000,-202.25720741,0.00010454,7]
[422546396,1779054639000,-215.64,0.00010561,2]
[422546384,1779054639000,-500.0,0.00010454,7]
[422546385,1779054639000,-585.50067179,0.00010454,7]
[422546383,1779054639000,-151.5,0.00010454,7]
[422546381,1779054639000,-500.0,0.00010454,7]
[422546380,1779054639000,-151.5,0.00010454,7]
[422546388,1779054639000,-500.0,0.00010454,7]
[422546399,1779054639000,-225.3,0.00010577,2]
[422546404,1779054639000,-153.34443758,0.00010583,2]
[422546403,1779054639000,-220.6781385,0.00010583,2]
[422546405,1779054639000,-480.17735832,0.00010589,2]
[422546427,1779054639000,-17454.21783027,0.00010658,2]
[422546426,1779054639000,-2027.04864998,0.00010658,2]
[422546425,1779054639000,-185.0,0.00010657,2]
[422546423,1779054639000,-500.0,0.00010657,2]
[422546424,1779054639000,-464.24334399,0.00010657,2]
[422546422,1779054639000,-168.80730933,0.00010657,2]
[422546421,1779054639000,-500.0,0.00010657,2]
[422546420,1779054639000,-500.0,0.00010657,2]
[422546418,1779054639000,-500.0,0.00010657,2]
[422546416,1779054639000,-463.03178758,0.00010657,2]
[422546419,1779054639000,-500.0,0.00010657,2]
[422546415,1779054639000,-500.0,0.00010657,2]
[422546414,1779054639000,-134.10428699,0.00010657,2]
[422546412,1779054639000,-500.0,0.00010657,2]
[422546413,1779054639000,-365.89571301,0.00010657,2]
[422546407,1779054639000,-230.31778647,0.00010657,2]
[422546411,1779054639000,-500.0,0.00010657,2]
[422546408,1779054639000,-500.0,0.00010657,2]
[422546410,1779054639000,-500.0,0.00010657,2]
[422546406,1779054639000,-671.04311763,0.00010593,2]
[422546417,1779054639000,-36.96821242,0.00010657,2]
[422546409,1779054639000,-500.0,0.00010657,2]
[422546499,1779054641000,-818.56969456,0.00010658,2]
[422546494,1779054641000,-7222.38778036,0.00010658,2]
[422546497,1779054641000,-414.12432266,0.00010658,2]
[422546501,1779054641000,-1071.84988445,0.00010658,2]
[422546742,1779054644000,-447.21043114,0.00010658,2]
[422546743,1779054644000,-15144.91822788,0.00010658,2]
[422546741,1779054644000,-272.78956886,8.292e-05,2]
[422546752,1779054647000,-1026.01566809,0.00010658,2]
[422546751,1779054647000,-981.79775414,0.00010658,2]
[422546807,1779055831000,-5000.0,8.724e-05,2]
[422546809,1779055831000,-1200.0,8.811e-05,2]
[422546815,1779055831000,-300.0,8.9e-05,2]
[422546813,1779055831000,-300.0,8.9e-05,2]
[422546819,1779055831000,-191.7875799,9.663e-05,7]
[422546817,1779055831000,-300.0,8.9e-05,2]
[422546811,1779055831000,-396.09568955,8.857e-05,2]
[422546821,1779055831000,-165.267407,9.745e-05,2]
[422546805,1779055831000,-5000.0,8.637e-05,2]
[422546823,1779055831000,-420.0,9.79e-05,2]
[422546825,1779055831000,-500.0,9.99e-05,2]
[422546827,1779055831000,-5657.16420682,9.99e-05,2]
[422546829,1779055831000,-1819.96749753,0.0001,2]
[422546843,1779055831000,-456.3965243,0.00010344,2]
[422546839,1779055831000,-151.0,0.00010344,2]
[422546837,1779055831000,-383.5751598,0.00010313,7]
[422546841,1779055831000,-151.0,0.00010344,2]
[422546845,1779055831000,-227.54304646,0.00010349,2]
[422546833,1779055831000,-325.9079251,0.00010302,2]
[422546831,1779055831000,-677.46087224,0.0001,2]
[422546835,1779055831000,-324.7432782,0.00010302,2]
[422546847,1779055832000,-43480.30311753,0.000104,2]
[422546849,1779055832000,-218.29,0.00010422,2]
[422546853,1779055832000,-160.0,0.00010441,2]
[422546857,1779055832000,-7757.92559225,0.00010446,2]
[422546851,1779055832000,-161.67668242,0.00010441,2]
[422546859,1779055832000,-781.625,0.00010446,2]
[422546863,1779055832000,-2013.05918132,0.00010446,2]
[422546868,1779055832000,-1076.45481776,0.00010446,2]
[422546866,1779055832000,-2750.0,0.00010446,2]
[422546855,1779055832000,-81183.82101315,0.00010446,2]
[422546870,1779055832000,-1747.13367697,0.00010446,2]
[422547075,1779055840000,-500.0,0.00010448,2]
[422547074,1779055840000,-500.0,0.00010448,2]
[422547073,1779055840000,-500.0,0.00010448,2]
[422547071,1779055840000,-500.0,0.00010448,2]
[422547069,1779055840000,-500.0,0.00010448,2]
[422547067,1779055840000,-161.22245053,0.00010448,2]
[422547064,1779055840000,-884.37605831,0.00010446,2]
[422547068,1779055840000,-500.0,0.00010448,2]
[422547072,1779055840000,-500.0,0.00010448,2]
[422547066,1779055840000,-1805.60466024,0.00010446,2]
[422547070,1779055840000,-500.0,0.00010448,2]
[422547083,1779055841000,-243685.49092926,0.0001045,2]
[422547077,1779055841000,-500.0,0.00010448,2]
[422547079,1779055841000,-500.0,0.00010448,2]
[422547076,1779055841000,-500.0,0.00010448,2]
[422547084,1779055841000,-10296.86003538,0.0001045,2]
[422547080,1779055841000,-95.84638038,0.0001045,2]
[422547081,1779055841000,-2433.1418704,0.0001045,2]
[422547082,1779055841000,-49940.13168805,0.0001045,2]
[422547078,1779055841000,-500.0,0.00010448,2]
[422547112,1779055846000,-30438.18514919,0.0001045,2]
[422547111,1779055846000,-9843.6724651,0.0001045,2]
[422547109,1779055846000,-30371.86598955,0.0001045,2]
[422547227,1779057038000,-5000.0,8.315e-05,2]
[422547230,1779057038000,-300.0,8.483e-05,2]
[422547231,1779057038000,-300.0,8.483e-05,2]
[422547229,1779057038000,-413.26658997,8.442e-05,2]
[422547232,1779057038000,-1200.0,8.483e-05,2]
[422547233,1779057038000,-420.0,9.331e-05,2]
[422547228,1779057038000,-5000.0,8.399e-05,2]
[422547237,1779057038000,-163.52414707,9.7e-05,7]
[422547234,1779057038000,-333.0,9.331e-05,2]
[422547236,1779057038000,-2681.48829804,9.618e-05,2]